bitfinex/quotes_ETHUSD_20241129
["timestamp","ask_amount","ask_price","bid_price","bid_amount"]
[1732856703575,0.1550525,3586.0,3585.9,3.64994583]
[1732856703771,0.1550525,3586.0,3585.9,1.50513241]
[1732856705703,0.1550525,3586.0,3585.9,0.05534583]
[1732856705903,0.1550525,3586.0,3585.4,3.5063454]
[1732856706085,0.1550525,3586.0,3585.9,0.05494265]
[1732856706284,0.1550525,3586.0,3585.4,3.5063454]
[1732856706484,0.1550525,3586.0,3585.9,0.05494265]
[1732856706729,0.1550525,3586.0,3585.4,3.5063454]
[1732856706895,0.1550525,3586.0,3585.9,0.05494265]
[1732856707099,0.1550525,3586.0,3585.5,0.70916254]
[1732856707399,2.9436725,3586.0,3585.9,0.05494265]
[1732856707621,0.1550525,3586.0,3585.3,3.58523]
[1732856707828,2.9436725,3586.0,3585.9,0.05494265]
[1732856708130,2.7887,3585.9,3585.3,0.7961]
[1732856708290,2.7887,3585.9,3585.3,1.49031293]
[1732856709220,2.7887,3585.9,3585.4,0.05501863]
[1732856709547,0.1550525,3586.0,3585.4,0.05501863]
[1732856709548,0.1550525,3586.0,3585.7,2.78884]
[1732856709900,0.1550525,3586.0,3585.8,0.05503305]
[1732856710097,0.1550525,3586.0,3585.8,0.36425731]
[1732856710447,0.1550525,3586.0,3585.9,0.05501786]
[1732856711598,0.1550525,3586.0,3585.9,0.80811786]
[1732856713563,0.1550525,3586.0,3585.9,0.05501786]
[1732856713725,0.1550525,3586.0,3585.7,3.54193]
[1732856713925,0.1550525,3586.0,3585.9,0.05501786]
[1732856714126,0.1550525,3586.0,3585.7,4.175031]
[1732856714362,0.1550525,3586.0,3585.9,0.05501786]
[1732856714581,0.1550525,3586.0,3585.7,4.175031]
[1732856714737,0.1550525,3586.0,3585.9,0.05501786]
[1732856715063,0.1550525,3586.0,3585.7,4.175031]
[1732856715226,0.1550525,3586.0,3585.9,0.05501786]
[1732856717274,0.6007525,3586.0,3585.9,0.05501786]
[1732856717473,7.62289704,3586.0,3585.9,0.05501786]
[1732856717681,2.7894,3585.0,3584.4,0.8289]
[1732856717827,0.4457,3585.1,3584.6,2.78963]
[1732856718029,2.78909,3585.4,3584.4,1.37044458]
[1732856718236,0.4457,3585.5,3584.4,1.37044458]
[1732856718237,2.78916,3585.3,3584.5,2.78972]
[1732856718458,2.78916,3585.3,3584.6,2.78969]
[1732856718666,0.4457,3585.5,3584.7,0.0278933]
[1732856718972,0.4457,3585.5,3584.7,2.8175233]
[1732856719176,3.23472,3585.5,3584.8,0.68408278]
[1732856719334,3.23472,3585.5,3584.8,3.47361278]
[1732856719761,0.4457,3585.5,3584.9,0.7586]
[1732856719968,3.0,3585.9,3585.1,4.02284454]
[1732856720175,3.0,3585.9,3585.1,3.33866165]
[1732856720176,3.0,3585.8,3585.1,3.33866165]
[1732856721749,5.7888,3585.8,3585.1,0.54934165]
[1732856722247,5.7888,3585.8,3585.1,3.33865165]
[1732856724167,2.7888,3585.8,3585.2,0.0480154]
[1732856725045,3.1550525,3586.0,3585.2,2.8372554]
[1732856725245,2.78872,3585.9,3585.2,2.8372554]
[1732856725747,2.78872,3585.9,3585.2,3.53072211]
[1732856726770,2.78878,3585.8,3585.2,0.74148211]
[1732856726975,2.78878,3585.8,3585.2,0.0480154]
[1732856727280,2.78878,3585.8,3585.0,2.78939]
[1732856727443,2.78878,3585.8,3585.1,0.04797052]
[1732856728400,2.78906,3585.5,3585.1,0.04797052]
[1732856728776,2.78906,3585.5,3584.9,0.7586]
[1732856728963,2.78906,3585.5,3585.2,0.04812051]
[1732856729299,0.1550525,3586.0,3585.3,0.04810531]
[1732856729462,0.1550525,3586.0,3585.4,0.8299]
[1732856729662,0.1550525,3586.0,3585.5,0.04805989]
[1732856730566,2.9437325,3586.0,3585.5,0.04805989]
[1732856731060,0.1550525,3586.0,3585.5,0.04805989]
[1732856731265,0.1550525,3586.0,3585.6,0.36949083]
[1732856731488,0.1550525,3586.0,3585.7,0.0480295]
[1732856732293,0.1550525,3586.0,3585.7,0.10049231]
[1732856734690,0.1550525,3586.0,3585.8,0.822]
[1732856735003,0.1550525,3586.0,3585.9,0.10039755]
[1732856737309,0.1550525,3586.0,3585.9,0.50847839]
[1732856737811,0.1550525,3586.0,3585.9,3.29717839]
[1732856738611,0.1550525,3586.0,3585.9,3.32506352]
[1732856738988,0.1550525,3586.0,3585.9,4.62207839]
[1732856740415,0.1550525,3586.0,3585.9,5.88276645]
[1732856740619,3.23308,3587.6,3586.2,0.55]
[1732856740771,2.78747,3587.5,3586.8,2.78799]
[1732856740973,1.23280689,3588.1,3586.7,2.57820689]
[1732856740974,2.78733,3587.7,3586.9,2.8876946]
[1732856741217,2.78733,3587.7,3587.0,2.78783]
[1732856741415,3.23288,3587.9,3587.1,2.78774]
[1732856741718,3.23288,3587.9,3587.2,0.7954]
[1732856741926,3.23288,3587.9,3587.3,0.09976501]
[1732856742224,2.78709,3588.0,3587.3,0.09976501]
[1732856742576,3.23267,3588.2,3587.3,2.88736501]
[1732856742914,3.23267,3588.2,3587.3,0.09976501]
[1732856742915,2.78706,3588.0,3587.3,0.09976501]
[1732856743097,2.78723,3587.8,3587.3,0.09976501]
[1732856744124,2.78706,3588.0,3587.3,0.09976501]
[1732856744288,2.78731,3587.7,3587.3,0.09976501]
[1732856744692,2.78714,3587.9,3587.3,0.09976501]
[1732856745482,2.78735,3587.7,3587.3,0.09976501]
[1732856747017,2.78714,3587.9,3587.3,0.09976501]
[1732856747236,2.78714,3587.9,3587.3,0.46805851]
[1732856747381,2.78734,3587.7,3587.3,0.09976501]
[1732856747580,2.78739,3587.6,3587.3,0.09976501]
[1732856748482,2.78725,3587.8,3587.3,0.09976501]
[1732856748888,2.78739,3587.6,3587.3,0.09976501]
[1732856749303,2.78751,3587.5,3587.3,0.09976501]
[1732856749509,2.78751,3587.5,3587.0,0.55]
[1732856749703,2.78751,3587.5,3587.1,0.09915589]
[1732856749908,2.78751,3587.5,3587.2,0.14762559]
[1732856750113,2.78751,3587.5,3587.3,0.0991226]
[1732856750438,5.57466,3587.7,3587.3,0.0991226]
[1732856750645,2.7873,3587.7,3587.3,0.0991226]
[1732856751310,2.78738,3587.6,3587.3,0.0991226]
[1732856753296,2.80739783,3587.8,3587.3,0.0991226]
[1732856753801,2.78753,3587.4,3587.3,0.0991226]
[1732856754229,3.04914857,3587.4,3587.2,0.14762559]
[1732856754426,0.26161857,3587.3,3587.2,0.14762559]
[1732856754793,2.78753,3587.4,3587.2,0.14762559]
[1732856754996,2.78761,3587.3,3586.4,3.35196942]
[1732856755232,2.78745,3587.5,3586.8,0.8081]
[1732856755429,2.78745,3587.5,3586.8,3.59609]
[1732856755600,5.78736,3587.7,3586.8,3.59609]
[1732856755800,0.26162064,3587.4,3586.9,0.3623965]
[1732856756042,0.26161807,3587.6,3587.0,0.8075]
[1732856756354,0.26161807,3587.5,3587.2,0.8075]
[1732856756538,0.26161807,3587.4,3587.3,0.36231333]
[1732856756958,0.26161807,3587.4,3587.3,3.14992333]
[1732856757141,0.02016783,3587.8,3587.7,0.7707]
[1732856757442,0.02016783,3587.8,3587.7,2.7873]
[1732856757660,0.02016783,3587.8,3587.7,3.5642]
[1732856757862,0.02016783,3587.8,3587.7,4.23001915]
[1732856758078,0.02016783,3587.8,3587.7,4.78001915]
[1732856759064,0.02016783,3587.8,3587.7,4.75215083]
[1732856760450,0.02016783,3587.8,3587.7,5.31510039]
[1732856760960,0.02016783,3587.8,3587.7,1.41485083]
[1732856762325,0.02016783,3587.8,3587.7,0.7769]
[1732856765962,0.02016783,3587.8,3587.3,0.36231333]
[1732856766176,0.46586783,3587.8,3587.0,0.7626]
[1732856766328,2.78767,3587.3,3586.7,0.7626]
[1732856766774,2.78749,3587.5,3586.7,3.55066]
[1732856767074,2.7873,3587.7,3586.8,3.60003754]
[1732856767363,2.78754,3587.4,3586.8,3.60003754]
[1732856768140,2.78763,3587.3,3586.8,0.81205754]
[1732856768556,2.78747,3587.5,3586.8,0.81205754]
[1732856768829,0.26090241,3587.4,3586.8,0.81205754]
[1732856769030,2.78754,3587.4,3586.9,0.52564799]
[1732856770167,2.78761,3587.3,3586.9,0.52564799]
[1732856770372,2.78761,3587.3,3586.9,0.08938224]
[1732856770665,2.78765,3587.3,3586.9,0.08938224]
[1732856771641,2.78772,3587.2,3586.9,0.08938224]
[1732856771871,2.78772,3587.2,3586.7,0.7626]
[1732856772070,2.78772,3587.2,3587.0,0.08936559]
[1732856772370,2.78756,3587.4,3586.7,0.7626]
[1732856772683,0.4457,3587.2,3586.8,0.7782342]
[1732856773265,2.78762,3587.3,3586.8,0.7782342]
[1732856776554,3.23315,3587.5,3586.8,0.7782342]
[1732856776758,3.04834458,3587.4,3586.8,0.08939889]
[1732856777050,2.78755,3587.4,3586.8,0.08939889]
[1732856778943,2.78761,3587.3,3586.8,0.08939889]
[1732856779139,2.78767,3587.3,3586.7,0.7626]
[1732856779336,2.78746,3587.5,3586.9,0.08941515]
[1732856779562,2.78746,3587.5,3586.7,3.96222973]
[1732856779898,2.78753,3587.4,3587.0,0.0896258]
[1732856780122,2.78753,3587.4,3586.7,3.96222973]
[1732856780686,2.78753,3587.4,3586.8,0.0896591]
[1732856782188,2.78738,3587.6,3587.0,2.78782]
[1732856782389,2.78738,3587.6,3587.1,0.7928]
[1732856782591,2.78738,3587.6,3587.1,0.88240915]
[1732856782795,0.26080998,3587.5,3587.1,0.88240915]
[1732856783148,2.78738,3587.6,3587.1,0.88240915]
[1732856783563,2.78747,3587.5,3587.1,0.88240915]
[1732856784294,3.02016783,3587.8,3587.2,2.78768]
[1732856784600,3.02016783,3587.8,3587.3,0.08957586]
[1732856786661,0.02016783,3587.8,3587.3,0.08957586]
[1732856786864,0.28096948,3587.8,3587.3,2.87717586]
[1732856787068,0.28096948,3587.8,3587.4,3.86604277]
[1732856787264,0.02016783,3587.8,3587.4,1.07857277]
[1732856787456,0.02016783,3587.8,3587.5,0.08945582]
[1732856788217,3.06824948,3587.8,3587.5,0.08945582]
[1732856788415,2.80744783,3587.8,3587.5,0.08945582]
[1732856789972,2.78737,3587.6,3587.5,0.08945582]
[1732856790172,0.2609473,3587.6,3586.8,0.7945]
[1732856790428,2.7876,3587.4,3586.9,0.08938522]
[1732856791085,2.78737,3587.6,3586.9,0.08938522]
[1732856791272,0.26099927,3587.5,3586.9,2.87730522]
[1732856791477,3.25309783,3587.8,3586.9,0.11726198]
[1732856791803,0.26099821,3587.7,3587.1,2.78774]
[1732856791974,0.26099821,3587.6,3587.2,0.72989326]
[1732856792180,2.80739783,3587.8,3587.2,0.72989326]
[1732856792406,0.26102499,3587.7,3587.2,0.72989326]
[1732856792605,0.26102499,3587.6,3587.2,0.72989326]
[1732856792809,2.78731,3587.7,3587.2,0.72989326]
[1732856792981,0.261025,3587.6,3587.2,0.72989326]
[1732856793311,0.26108568,3587.5,3587.2,0.72989326]
[1732856793512,2.78731,3587.7,3587.3,0.43475333]
[1732856793827,0.26109168,3587.6,3587.4,0.08930497]
[1732856794002,0.26109168,3587.5,3587.4,0.08930497]
[1732856794205,0.26109168,3587.5,3587.0,0.8299]
[1732856794378,0.26109168,3587.4,3587.1,0.08934893]
[1732856794583,0.46586783,3587.8,3587.1,0.46007182]
[1732856794806,0.46586783,3587.8,3587.1,0.08934893]
[1732856794807,0.26116085,3587.7,3587.1,0.08934893]
[1732856795010,0.26116085,3587.6,3587.2,0.763]
[1732856795232,0.26116085,3587.5,3587.2,3.55063]
[1732856795409,0.02016783,3587.8,3587.2,1.52005993]
[1732856795733,0.26122524,3587.7,3587.3,0.08933059]
[1732856795947,0.02016783,3587.8,3587.6,0.763]
[1732856796128,0.02016783,3587.8,3587.7,2.7873]
[1732856796300,0.02016783,3587.8,3587.7,3.63954009]
[1732856800503,0.02016783,3587.8,3587.7,3.66740862]
[1732856800752,0.02016783,3587.8,3587.7,4.43610742]
[1732856800934,0.02016783,3587.8,3587.7,4.40823889]
[1732856801118,0.02016783,3587.8,3587.7,4.95823889]
[1732856804317,0.02016783,3587.8,3587.7,4.98610493]
[1732856804916,0.02016783,3587.8,3587.7,4.95823889]
[1732856806065,0.02016783,3587.8,3587.7,7.98610446]
[1732856806305,0.02016783,3587.8,3587.7,7.95823889]
[1732856806717,0.4457,3589.4,3588.8,3.54943]
[1732856806718,0.70653746,3589.4,3588.8,3.54943]
[1732856806923,0.70653746,3589.4,3588.9,0.08872641]
[1732856807261,0.4457,3589.4,3589.0,2.78627]
[1732856807614,0.4457,3589.4,3589.1,0.08851975]
[1732856808822,0.4457,3589.4,3588.8,3.54938]
[1732856809167,0.4457,3589.4,3588.9,0.08855002]
[1732856809483,0.0141276,3589.3,3588.9,0.08855002]
[1732856809820,0.0141276,3589.3,3588.6,2.78659]
[1732856810018,0.0141276,3589.3,3588.7,0.44847951]
[1732856810265,0.0141276,3589.3,3588.7,3.23498951]
[1732856811492,2.8001976,3589.3,3588.7,3.23498951]
[1732856811977,2.8001976,3589.3,3588.7,0.44847951]
[1732856812183,2.78607,3589.3,3588.7,0.44847951]
[1732856812484,2.78607,3589.3,3588.8,0.40480495]
[1732856812646,2.8002976,3589.2,3588.7,0.44847951]
[1732856812977,2.78627,3589.1,3588.8,0.08850388]
[1732856813179,2.78627,3589.1,3588.7,0.359959]
[1732856813367,2.7863,3589.0,3588.8,0.08850388]
[1732856813574,2.78622,3589.1,3588.5,0.8149]
[1732856813876,2.78622,3589.1,3588.6,0.50349153]
[1732856816184,0.4457,3589.1,3588.6,0.50349153]
[1732856816421,2.7863,3589.0,3588.6,0.50349153]
[1732856816619,2.78637,3588.9,3588.6,0.08853714]
[1732856816920,0.4457,3589.1,3588.4,0.54790393]
[1732856817115,0.0141276,3589.0,3588.7,0.08830528]
[1732856817320,2.78644,3588.8,3588.2,1.34513761]
[1732856817488,2.78644,3588.8,3588.3,0.53642469]
[1732856817694,2.78644,3588.8,3588.3,0.62479651]
[1732856817996,2.78644,3588.8,3588.3,0.08837182]
[1732856818211,2.78644,3588.8,3588.2,4.13202761]
[1732856818379,2.78644,3588.8,3588.3,0.08837182]
[1732856818579,2.78644,3588.8,3588.2,4.13202761]
[1732856818808,2.78644,3588.8,3588.3,0.08837182]
[1732856819006,2.78644,3588.8,3588.2,4.9471513]
[1732856819212,2.78644,3588.8,3588.3,0.08837182]
[1732856819551,2.78644,3588.8,3588.2,4.9471513]
[1732856819820,2.78644,3588.8,3588.3,0.08837182]
[1732856820024,2.78644,3588.8,3588.3,0.62676524]
[1732856820239,2.7863,3589.0,3588.4,0.08835518]
[1732856821312,2.8005176,3588.9,3588.4,0.08835518]
[1732856821558,2.78651,3588.8,3588.4,0.08835518]
[1732856821829,2.8005176,3588.9,3588.4,0.08835518]
[1732856822230,2.78644,3588.8,3588.4,0.08835518]
[1732856822697,3.23191,3589.1,3588.4,0.08835518]
[1732856822898,3.04675982,3589.0,3588.4,0.97496092]
[1732856823125,2.7863,3589.0,3588.4,0.97496092]
[1732856823308,0.26053642,3588.9,3588.4,0.97496092]
[1732856823882,2.7863,3589.0,3588.4,0.97496092]
[1732856824132,0.4457,3589.1,3588.4,0.88660574]
[1732856824431,0.26066384,3589.0,3588.5,3.5028163]
[1732856824640,0.26066384,3589.2,3588.5,3.5028163]
[1732856824930,0.26066384,3589.1,3588.5,3.5028163]
[1732856825090,0.26066384,3589.0,3588.6,2.78659]
[1732856825313,0.4457,3589.3,3588.7,0.56181577]
[1732856825519,2.78627,3589.1,3588.4,4.01883933]
[1732856825818,0.26081249,3589.0,3588.5,0.08835648]
[1732856826035,0.26081249,3588.9,3588.5,0.08835648]
[1732856826237,0.26081249,3588.8,3588.5,0.08835648]
[1732856826439,2.78627,3589.1,3588.5,0.08835648]
[1732856826619,0.26091849,3589.0,3588.5,0.63358982]
[1732856826819,0.26091849,3588.9,3588.5,0.63358982]
[1732856827048,2.78627,3589.1,3588.5,0.63358982]
[1732856827251,0.26091475,3589.0,3588.5,0.63358982]
[1732856827456,0.26091475,3588.9,3588.5,0.63358982]
[1732856827658,2.78627,3589.1,3588.6,0.46524292]
[1732856827848,0.26093372,3589.0,3588.6,0.46524292]
[1732856828027,0.26093372,3588.9,3588.7,0.08832321]
[1732856828362,2.78627,3589.1,3588.8,0.08830658]
[1732856828658,0.26098801,3589.0,3588.6,0.46524292]
[1732856828957,2.78627,3589.1,3588.6,0.46524292]
[1732856829124,0.2609937,3589.0,3588.7,0.08832321]
[1732856829459,0.2609937,3588.9,3588.6,0.46524292]
[1732856829759,0.26105603,3588.8,3588.7,0.08832321]
[1732856830058,0.26105603,3588.8,3588.2,4.13204761]
[1732856830255,2.78642,3588.9,3588.7,0.08832321]
[1732856830440,0.26111229,3588.8,3588.2,4.13204761]
[1732856830761,0.26111229,3588.7,3588.3,0.08838975]
[1732856830963,2.78642,3588.9,3588.3,3.61079267]
[1732856831275,0.26111188,3588.8,3588.4,0.08837311]
[1732856831423,0.26111188,3588.7,3588.4,0.08837311]
[1732856831764,2.78642,3588.9,3588.4,0.08837311]
[1732856831935,0.26114569,3588.8,3588.4,0.08837311]
[1732856832263,0.26114569,3588.7,3588.4,0.71601638]
[1732856832477,3.23179,3589.3,3588.5,2.78663]
[1732856832763,3.04731291,3589.2,3588.6,0.7919]
[1732856832970,3.04738291,3589.1,3588.6,0.88023985]
[1732856833130,0.26116291,3589.0,3588.6,0.88023985]
[1732856833333,0.26116291,3588.9,3588.6,0.88023985]
[1732856833673,0.26116291,3588.8,3588.6,0.88023985]
[1732856833836,2.78622,3589.1,3588.6,0.88023985]
[1732856834033,0.26118491,3589.0,3588.6,0.88023985]
[1732856834230,0.26118491,3588.9,3588.6,0.88023985]
[1732856834435,0.26118491,3588.8,3588.6,0.88023985]
[1732856834761,2.78622,3589.1,3588.6,0.88023985]
[1732856834762,0.26121393,3588.7,3588.6,0.88023985]
[1732856835636,2.78616,3589.2,3588.6,0.88023985]
[1732856835956,0.26122946,3589.1,3588.6,0.88023985]
[1732856836160,0.26122946,3589.0,3588.6,0.88023985]
[1732856836476,0.26122946,3588.9,3588.6,0.88023985]
[1732856836663,0.26122946,3588.8,3588.6,0.88023985]
[1732856836850,0.26122946,3588.7,3588.6,0.88023985]
[1732856837837,2.78621,3589.1,3588.6,0.88023985]
[1732856838042,0.26126574,3589.0,3588.6,0.88023985]
[1732856838242,0.26126574,3588.9,3588.6,0.88023985]
[1732856838438,0.26126574,3588.8,3588.6,3.66682985]
[1732856838651,2.78619,3589.2,3588.6,0.88023985]
[1732856838856,3.04748762,3589.1,3588.6,0.88023985]
[1732856839176,0.26126762,3589.0,3588.6,0.88023985]
[1732856839343,0.26126762,3588.9,3588.6,0.88023985]
[1732856839669,0.26126762,3588.8,3588.6,0.88023985]
[1732856839845,0.26126762,3588.7,3588.6,0.88023985]
[1732856841670,0.26126762,3588.7,3588.6,3.66683985]
[1732856841867,0.26126762,3588.7,3588.6,4.39738959]
[1732856842180,0.26134492,3588.7,3588.6,4.39738959]
[1732856842891,3.23222,3588.7,3588.6,0.08833985]
[1732856843058,3.49356926,3588.7,3588.6,0.08833985]
[1732856843257,3.49356926,3588.7,3588.0,2.78706]
[1732856843480,0.26134926,3588.6,3588.0,2.78706]
[1732856843646,0.26134926,3588.5,3588.1,0.08542718]
[1732856843998,0.26134926,3588.4,3588.1,3.64227983]
[1732856844291,3.23203,3589.0,3588.3,2.78683]
[1732856844588,0.26129028,3588.9,3588.3,2.78683]
[1732856844742,0.26129028,3588.8,3588.4,2.87211727]
[1732856844944,0.26129028,3588.7,3588.5,0.49137466]
[1732856845149,0.26129028,3588.6,3588.4,2.87211727]
[1732856845386,5.78617,3589.2,3588.6,0.085344]
[1732856845387,2.78622,3589.1,3588.6,0.085344]
[1732856845585,0.26128431,3589.0,3588.5,0.08536064]
[1732856845881,0.26128431,3588.9,3588.6,0.085344]
[1732856846080,0.26128431,3588.8,3588.6,0.085344]
[1732856846289,0.26128431,3588.7,3588.6,0.085344]
[1732856846582,0.26128431,3588.7,3588.4,2.78674]
[1732856846781,2.78622,3589.1,3588.6,0.085344]
[1732856846954,0.26128188,3589.0,3588.5,0.08536064]
[1732856847148,0.26128188,3588.9,3588.7,0.08532737]
[1732856847348,0.26128188,3588.8,3588.4,2.78674]
[1732856847674,0.26128188,3588.7,3588.5,0.76152793]
[1732856847877,0.26128188,3588.6,3588.5,0.76152793]
[1732856851973,0.26128188,3588.6,3588.2,2.04162933]
[1732856852199,0.26125701,3588.5,3588.2,2.04162933]
[1732856852399,0.26124807,3588.4,3588.2,2.04162933]
[1732856852699,2.78645,3588.8,3588.2,2.04162933]
[1732856852907,0.26125014,3588.7,3588.4,2.78675]
[1732856853204,0.26125014,3588.6,3588.3,3.57745491]
[1732856853503,0.26125014,3588.5,3588.3,3.57745491]
[1732856853660,2.7863,3589.0,3588.3,3.57745491]
[1732856853958,0.26123664,3588.9,3588.4,0.84060342]
[1732856854157,0.26123664,3588.8,3588.4,0.84060342]
[1732856854353,0.26123664,3588.7,3588.4,0.84060342]
[1732856854559,0.26123664,3588.6,3588.4,0.84060342]
[1732856854762,0.26123664,3588.5,3588.4,0.84060342]
[1732856855701,0.26123845,3588.5,3588.4,0.84060342]
[1732856856111,0.26123862,3588.5,3588.4,0.84060342]
[1732856856474,0.26123862,3588.5,3588.2,1.36130992]
[1732856856674,0.26123862,3588.4,3588.2,1.36130992]
[1732856856874,2.78655,3588.7,3588.2,1.36130992]
[1732856857084,0.26121486,3588.6,3588.2,1.36130992]
[1732856857291,0.26121486,3588.5,3588.2,1.36130992]
[1732856857492,0.26121486,3588.4,3588.3,0.16525297]
[1732856859163,0.26121486,3588.4,3588.3,0.25066478]
[1732856862408,2.78645,3588.8,3588.3,0.25066478]
[1732856862585,0.26119636,3588.7,3588.3,0.08541181]
[1732856862770,0.26119636,3588.6,3588.3,0.08541181]
[1732856862973,0.26119636,3588.5,3588.4,0.08539517]
[1732856863301,0.26119636,3588.5,3588.2,3.59639]
[1732856863507,3.2462176,3588.9,3588.4,0.08542796]
[1732856863711,0.26118925,3588.8,3588.3,0.08544459]
[1732856863890,0.26118925,3588.7,3588.5,0.08541132]
[1732856864209,0.26118925,3588.6,3588.2,4.44254955]
[1732856864411,0.26118925,3588.5,3588.2,4.44254955]
[1732856864618,0.26118925,3588.4,3588.2,4.44254955]
[1732856864793,3.23209,3588.9,3588.3,0.52884957]
[1732856864990,0.26119931,3588.8,3588.3,0.52884957]
[1732856865180,0.26119931,3588.7,3588.3,0.52884957]
[1732856865380,0.26119931,3588.6,3588.3,0.52884957]
[1732856865580,0.26119931,3588.5,3588.3,0.52884957]
[1732856865887,3.23209,3588.9,3588.4,0.55261256]
[1732856866092,0.26120303,3588.8,3588.2,4.44254955]
[1732856866303,0.26120303,3588.7,3588.2,4.44254955]
[1732856866620,0.26120303,3588.6,3588.2,4.44254955]
[1732856866833,0.26120303,3588.5,3588.2,4.44254955]
[1732856867005,0.26120303,3588.4,3588.2,4.44254955]
[1732856867331,3.2462176,3588.9,3588.3,0.52885577]
[1732856867535,0.26122716,3588.8,3588.2,4.44254955]
[1732856867693,0.26122716,3588.7,3588.2,4.44254955]
[1732856868031,0.26122716,3588.6,3588.2,4.44254955]
[1732856868212,0.26122716,3588.5,3588.2,4.44254955]
[1732856868424,0.26122716,3588.4,3588.2,4.44254955]
[1732856868622,0.26122716,3588.3,3588.2,3.59639]
[1732856868789,0.26124247,3588.3,3588.2,3.59639]
[1732856869115,3.2462076,3588.9,3588.2,3.59639]
[1732856869311,0.26124246,3588.3,3588.2,3.59639]
[1732856869512,3.23208,3588.9,3588.2,3.59639]
[1732856870108,0.26126384,3588.3,3588.2,3.59639]
[1732856870309,3.23208,3588.9,3588.2,4.44254875]
[1732856870620,3.23208,3588.9,3588.3,2.78681]
[1732856870792,0.26128211,3588.8,3588.3,2.78681]
[1732856871000,0.26128211,3588.7,3588.3,2.78681]
[1732856871342,0.26128211,3588.6,3588.5,2.78667]
[1732856871629,0.26131761,3588.6,3588.5,3.54077]
[1732856871830,0.26131761,3588.6,3588.5,4.01805993]
[1732856874135,0.26131761,3588.6,3588.5,4.10350404]
[1732856877319,0.26131761,3588.6,3588.5,3.62621411]
[1732856878131,0.26131761,3588.6,3588.5,0.83954411]
[1732856878732,2.78622,3589.1,3588.5,0.83954411]
[1732856879327,1.16914409,3589.2,3588.5,3.62614411]
[1732856879551,0.26132249,3589.1,3588.5,3.62614411]
[1732856879752,0.26132249,3589.0,3588.5,3.62614411]
[1732856879939,0.26132249,3588.9,3588.5,3.62614411]
[1732856880156,0.26132249,3588.8,3588.5,3.62614411]
[1732856880351,0.26132249,3588.7,3588.5,0.08544411]
[1732856880552,0.26132249,3588.6,3588.5,0.08544411]
[1732856880757,0.26132249,3588.6,3588.5,2.78666]
[1732856880927,0.26132249,3588.6,3588.5,3.51106726]
[1732856881134,0.26130171,3588.6,3588.5,3.51106726]
[1732856881368,0.4457,3589.2,3588.5,3.51106726]
[1732856881536,0.26126954,3589.1,3588.6,2.78658]
[1732856881755,0.26126954,3589.0,3588.7,2.78651]
[1732856881961,0.26126954,3588.9,3588.8,2.78644]
[1732856882190,0.26126954,3588.9,3588.8,2.87181036]
[1732856883197,0.26126954,3588.9,3588.8,3.5159824]
[1732856884859,0.4457,3589.4,3588.8,3.5159824]
[1732856884860,0.4457,3589.4,3589.0,2.78628]
[1732856885059,0.26111433,3589.3,3589.1,0.08529067]
[1732856885289,0.67883631,3589.2,3589.1,0.08529067]
[1732856885514,0.26111433,3589.2,3589.1,3.69400067]
[1732856885703,0.67883631,3589.2,3589.1,4.34203574]
[1732856886004,0.26111433,3589.2,3589.1,4.34203574]
[1732856887907,0.26111433,3589.2,3589.1,2.87150067]
[1732856889403,0.26111433,3589.2,3589.1,0.08529067]
[1732856889802,0.26111433,3589.2,3588.8,2.78643]
[1732856890101,0.4175674,3589.3,3588.8,2.78643]
[1732856890301,0.26086751,3589.2,3588.9,0.08501996]
[1732856890541,0.26086751,3589.1,3588.9,0.08501996]
[1732856890737,0.26086751,3589.0,3588.9,0.08501996]
[1732856890948,0.26086751,3589.0,3588.9,3.41464198]
[1732856891604,0.4175674,3589.4,3588.9,3.41464198]
[1732856891808,0.26084931,3589.3,3588.9,3.41464198]
[1732856892045,0.26084931,3589.2,3588.9,3.41464198]
[1732856892242,0.26084931,3589.1,3588.9,3.41464198]
[1732856892406,0.4175674,3589.4,3589.0,0.59758122]
[1732856892731,0.4175674,3589.4,3588.9,3.41464198]
[1732856892732,0.26083311,3589.3,3589.1,0.08499862]
[1732856892927,0.26083311,3589.2,3589.1,0.08499862]
[1732856893243,0.26083311,3589.2,3588.7,5.34765024]
[1732856893431,0.4175674,3589.3,3589.1,0.08499862]
[1732856893637,3.04704202,3589.2,3588.4,0.7525]
[1732856893936,0.70654202,3589.1,3588.5,2.78663]
[1732856894107,0.26084202,3589.0,3588.5,2.78663]
[1732856894321,0.26084202,3588.9,3588.5,2.78663]
[1732856894660,0.26084202,3588.8,3588.5,2.78663]
[1732856894957,0.8632674,3589.1,3588.5,2.78663]
[1732856895157,0.26087489,3589.0,3588.5,2.78663]
[1732856895456,0.26087489,3588.9,3588.5,2.78663]
[1732856895656,0.26087489,3588.8,3588.5,2.78663]
[1732856895834,0.8632674,3589.1,3588.7,2.78651]
[1732856896033,0.26089067,3589.0,3588.6,2.78659]
[1732856896259,0.8632674,3589.4,3589.0,2.78624]
[1732856896435,0.26088768,3589.3,3589.0,2.78624]
[1732856896640,0.26088768,3589.2,3589.1,2.78621]
[1732856896840,0.26088768,3589.2,3589.1,3.54370993]
[1732856897042,0.26088768,3589.2,3589.1,0.75749993]
[1732856897261,0.26088768,3589.3,3589.1,0.75749993]
[1732856897567,0.6007525,3589.6,3589.1,0.75749993]
[1732856897864,0.2608919,3589.5,3589.0,2.78625]
[1732856898066,0.2608919,3589.4,3589.0,2.78625]
[1732856898227,0.2608919,3589.3,3589.0,2.78625]
[1732856898427,0.6007525,3589.6,3589.1,2.78617]
[1732856898649,0.26091704,3589.5,3589.1,2.78617]
[1732856898853,0.26091447,3589.4,3589.1,2.78617]
[1732856899051,0.6007525,3589.6,3589.1,3.54367093]
[1732856899268,0.26090909,3589.5,3589.1,3.54367093]
[1732856899456,0.26090909,3589.4,3589.2,2.78607]
[1732856899635,0.26088317,3589.5,3589.2,2.78607]
[1732856899843,0.1550525,3589.6,3589.3,0.63297409]
[1732856900043,0.26088201,3589.5,3589.4,2.78597]
[1732856902982,0.26088201,3589.5,3589.1,2.78617]
[1732856903180,0.1550525,3589.6,3589.1,2.78617]
[1732856903181,0.1550525,3589.6,3589.3,2.786]
[1732856903488,0.26089575,3589.5,3589.4,2.78598]
[1732856903953,0.1550525,3589.6,3589.4,2.78598]
[1732856904276,0.1550525,3589.6,3589.5,3.34311]
[1732856904509,0.41594002,3589.6,3589.5,0.64211827]
[1732856905603,0.41594002,3589.6,3589.5,0.08490827]
[1732856905979,0.41594002,3589.6,3589.3,2.78603]
[1732856906307,0.1550525,3589.6,3589.4,0.08492489]
[1732856907005,0.2609023,3589.5,3589.4,0.08492489]
[1732856907183,0.1550525,3589.6,3589.4,0.08492489]
[1732856907989,0.26094189,3589.5,3589.4,0.08492489]